bitfinex-derivatives/quotes_ETHF0:USTF0_20250904
["timestamp","ask_amount","ask_price","bid_price","bid_amount"]
[1756990001636,0.40965,4392.8,4392.5,4.135]
[1756990001941,0.40964,4392.9,4392.6,0.9272]
[1756990002132,0.40964,4392.9,4392.8,0.9272]
[1756990002327,0.5124,4393.5,4392.8,2.03909651]
[1756990002541,0.40961,4393.2,4393.0,7.75129201]
[1756990002741,1.76191,4393.2,4393.0,7.75129201]
[1756990003133,0.40961,4393.2,4393.0,7.75129201]
[1756990003333,1.3523,4393.1,4393.0,7.75129201]
[1756990003738,0.40961,4393.2,4393.1,0.9097]
[1756990004136,0.40961,4393.2,4393.0,6.84159201]
[1756990004137,1.3523,4393.1,4393.0,6.84159201]
[1756990004534,1.3523,4393.1,4393.0,8.88068852]
[1756990005339,1.3523,4393.1,4393.0,2.03909651]
[1756990005541,1.3523,4392.9,4392.6,2.03909651]
[1756990005740,0.40965,4392.7,4392.6,2.03909651]
[1756990005940,1.76195,4392.7,4392.6,2.03909651]
[1756990006140,1.3523,4392.7,4392.6,0.9097]
[1756990006545,1.76196,4392.6,4392.5,3.2078]
[1756990006733,1.3523,4392.6,4392.5,3.2078]
[1756990007634,0.5052,4392.0,4391.8,9.70011972]
[1756990007834,1.3523,4391.9,4391.8,9.70011972]
[1756990008045,1.76203,4391.9,4391.8,6.84159201]
[1756990008247,1.3523,4391.9,4391.8,6.84159201]
[1756990008441,1.3523,4392.4,4391.8,7.75129201]
[1756990008748,1.3523,4392.4,4392.3,5.67688466]
[1756990009345,1.76198,4392.4,4392.3,3.63379201]
[1756990010344,1.8575,4393.0,4392.3,7.75129201]
[1756990010545,0.40965,4392.9,4392.8,3.63379201]
[1756990010743,1.3523,4392.6,4392.5,6.84159201]
[1756990010944,1.3523,4392.6,4392.5,9.70011972]
[1756990011352,1.3523,4392.6,4392.5,6.84159201]
[1756990011648,1.3523,4392.6,4392.5,3.2078]
[1756990012550,0.40966,4392.7,4392.5,4.1175]
[1756990012852,1.3523,4392.6,4392.5,4.1175]
[1756990013045,0.40966,4392.7,4392.5,4.1175]
[1756990013046,0.40966,4392.7,4392.6,0.9097]
[1756990014250,0.40964,4392.9,4392.6,0.9097]
[1756990014560,0.40961,4393.2,4392.8,1.31934]
[1756990014747,1.3523,4394.9,4393.1,6.84159201]
[1756990014946,0.5052,4395.5,4394.9,1.3273]
[1756990015153,0.40946,4394.9,4394.7,3.2078]
[1756990015444,0.40951,4394.3,4394.2,0.66271077]
[1756990015643,0.40958,4393.5,4393.4,3.2078]
[1756990015845,0.2682,4394.5,4393.4,3.2078]
[1756990015846,0.2682,4394.5,4393.5,0.5253]
[1756990016038,0.40956,4393.7,4393.6,1.3273]
[1756990016244,3.2078,4394.9,4393.6,1.3273]
[1756990016443,1.0237,4394.6,4394.1,4.5351]
[1756990016647,1.0237,4394.6,4394.2,1.3273]
[1756990016844,0.40951,4394.3,4394.2,1.3273]
[1756990017550,1.121,4394.2,4394.1,3.2078]
[1756990018253,0.40956,4393.7,4393.6,4.5351]
[1756990019140,0.40956,4393.8,4393.7,1.3273]
[1756990020247,1.0237,4394.6,4393.7,1.3273]
[1756990020448,0.40951,4394.3,4394.2,4.5351]
[1756990021351,4.23133,4395.4,4394.6,1.3273]
[1756990021556,0.40946,4394.8,4394.7,4.5351]
[1756990021957,1.0235,4395.5,4394.7,4.5351]
[1756990022250,1.02329,4396.4,4395.3,1.3273]
[1756990022446,1.02329,4396.4,4396.0,0.5253]
[1756990022647,1.02329,4396.4,4396.1,1.3273]
[1756990022846,4.23101,4396.8,4396.0,1.8526]
[1756990022847,0.40933,4396.2,4396.0,1.8526]
[1756990023153,0.40933,4396.2,4396.1,1.3273]
[1756990023552,0.40936,4395.9,4395.8,3.2078]
[1756990023856,0.40934,4396.1,4396.0,0.5253]
[1756990024150,2.14416,4397.0,4396.0,0.5253]
[1756990024352,3.2078,4397.9,4396.6,6.84159201]
[1756990024553,4.3288,4397.9,4396.7,1.3273]
[1756990024749,0.2526,4399.0,4397.6,3.2078]
[1756990024750,1.02287,4398.2,4397.6,3.2078]
[1756990024952,2.04602,4397.6,4397.1,3.2078]
[1756990025146,0.40929,4396.6,4396.5,3.7331]
[1756990025350,0.40929,4396.6,4396.5,1.8526]
[1756990025554,0.40934,4396.1,4396.0,1.8526]
[1756990026250,3.2078,4396.9,4396.1,1.3273]
[1756990026459,0.40933,4396.3,4396.1,1.3273]
[1756990027156,0.4093,4396.6,4396.1,1.3273]
[1756990027350,1.02306,4397.4,4396.6,1.3273]
[1756990027655,0.40928,4396.7,4396.6,1.3273]
[1756990028253,0.40928,4396.7,4396.5,3.7331]
[1756990028555,0.40928,4396.7,4396.5,5.0604]
[1756990028953,0.40928,4396.7,4396.6,1.3273]
[1756990034554,1.02291,4398.0,4397.5,0.5242]
[1756990034751,0.40918,4397.8,4397.7,3.63379201]
[1756990035257,0.40918,4397.8,4397.7,4.88649201]
[1756990036058,0.40915,4398.1,4398.0,1.7769]
[1756990037552,0.40918,4397.8,4397.7,3.2078]
[1756990037761,0.40918,4397.8,4397.7,4.4605]
[1756990037960,0.40918,4397.8,4397.7,1.2527]
[1756990038256,0.40918,4397.8,4397.7,1.4927]
[1756990040748,0.40918,4397.8,4397.7,1.2527]
[1756990041052,0.40918,4397.8,4397.7,1.4927]
[1756990042560,0.40918,4397.8,4397.7,1.2527]
[1756990042862,0.40918,4397.8,4397.7,1.4927]
[1756990043061,4.23064,4398.3,4397.7,1.4927]
[1756990043257,1.02282,4398.4,4398.1,1.2527]
[1756990043452,0.40913,4398.3,4398.2,1.2527]
[1756990043663,0.40913,4398.3,4398.2,1.4927]
[1756990044661,0.40913,4398.3,4398.2,1.2527]
[1756990044861,0.40913,4398.3,4398.2,1.4927]
[1756990048060,0.40913,4398.3,4398.2,1.2527]
[1756990048360,0.40913,4398.3,4398.2,0.24]
[1756990048556,0.40913,4398.3,4398.2,1.4927]
[1756990048855,0.40913,4398.3,4398.2,1.2527]
[1756990049061,1.77519,4397.7,4397.6,30.84151]
[1756990049257,1.77519,4397.7,4397.6,30.6115]
[1756990049453,5.77519,4397.7,4397.6,29.2013]
[1756990049662,5.77519,4397.7,4397.6,28.64449]
[1756990050055,0.40919,4397.7,4397.6,28.64449]
[1756990051064,1.77519,4397.7,4397.6,27.96644]
[1756990051266,1.77519,4397.7,4397.6,27.42209]
[1756990052163,0.40919,4397.7,4397.6,28.67479]
[1756990052753,1.77519,4397.7,4397.6,27.42209]
[1756990053267,0.40919,4397.7,4397.6,28.67479]
[1756990055161,0.4091,4398.7,4398.6,1.2527]
[1756990055464,0.4091,4398.7,4398.6,1.4927]
[1756990055854,0.4091,4398.7,4398.6,1.2527]
[1756990056061,0.40915,4398.1,4398.0,4.9847]
[1756990056260,0.40915,4398.1,4398.0,5.2247]
[1756990057058,0.40915,4398.1,4398.0,4.9847]
[1756990057265,0.40915,4398.1,4398.0,5.2247]
[1756990060266,1.02292,4398.0,4397.6,27.18209]
[1756990060469,1.02292,4398.0,4397.5,3.732]
[1756990060470,0.40918,4397.8,4397.7,1.2527]
[1756990060968,0.40918,4397.8,4397.7,1.4927]
[1756990062064,0.40918,4397.8,4397.7,1.2527]
[1756990062262,0.40918,4397.8,4397.7,1.4927]
[1756990066272,0.40918,4397.8,4397.7,3.2074]
[1756990067272,0.40918,4397.8,4397.7,2.9674]
[1756990067471,0.40918,4397.8,4397.7,3.2074]
[1756990068765,0.40915,4398.1,4398.0,0.526]
[1756990069071,2.15815,4398.1,4398.0,1.0843]
[1756990069370,3.55955,4398.1,4398.0,2.1635]
[1756990069570,3.55955,4398.1,4398.0,2.4035]
[1756990070563,3.55955,4398.1,4398.0,0.8443]
[1756990070765,3.55955,4398.1,4398.0,1.0843]
[1756990071474,3.55955,4398.1,4398.0,3.2739]
[1756990071776,3.55955,4398.1,4398.0,1.0843]
[1756990071969,3.55955,4398.1,4398.0,3.2739]
[1756990072470,3.55955,4398.1,4398.0,1.0843]
[1756990072681,3.55955,4398.1,4397.5,3.732]
[1756990072682,3.6981,4397.5,4397.4,1.38639712]
[1756990072977,0.40926,4397.0,4396.9,4.0521]
[1756990073173,2.68636,4397.0,4396.9,4.2921]
[1756990073566,3.55966,4397.0,4396.9,4.2921]
[1756990074067,1.28496,4397.0,4396.9,6.4817]
[1756990074268,4.10736,4397.0,4396.9,0.8443]
[1756990074468,4.10736,4397.0,4396.9,1.0843]
[1756990075472,3.55966,4397.0,4396.9,3.2739]
[1756990076075,0.40926,4397.0,4396.9,3.2739]
[1756990076278,1.28496,4397.0,4396.9,3.2739]
[1756990076477,2.68636,4397.0,4396.9,3.2739]
[1756990077767,0.40926,4397.0,4396.9,3.2739]
[1756990079281,0.40926,4397.0,4396.9,9.34022771]
[1756990079481,1.02305,4397.5,4396.9,8.02102771]
[1756990079672,0.40917,4397.9,4397.8,3.0339]
[1756990079877,0.40917,4397.9,4397.8,3.2739]
[1756990080680,0.40917,4397.9,4397.8,6.42632148]
[1756990081671,1.4014,4398.6,4397.8,6.42632148]
[1756990081672,1.4014,4400.1,4398.1,1.3192]
[1756990081870,1.81037,4400.1,4400.0,6.36022148]
[1756990082170,1.81037,4400.1,4400.0,3.2078]
[1756990082374,1.81037,4400.1,4400.0,3.4478]
[1756990084784,1.81037,4400.1,4399.6,34.53142148]
[1756990084785,1.8104,4399.7,4399.6,31.379]
[1756990084983,1.8104,4399.7,4399.6,31.619]
[1756990085380,1.8104,4399.7,4399.6,32.9382]
[1756990085581,0.409,4399.7,4399.6,32.9382]
[1756990085987,0.409,4399.7,4399.6,32.6982]
[1756990086184,0.409,4399.7,4399.6,32.9382]
[1756990087487,1.8104,4399.7,4399.6,31.619]
[1756990088189,1.8104,4399.7,4399.6,31.379]
[1756990088387,3.5594,4399.7,4399.5,3.2078]
[1756990088577,3.1504,4399.6,4399.5,3.2078]
[1756990088782,3.1504,4399.6,4399.5,3.4478]
[1756990089687,3.1504,4399.6,4399.5,4.2921]
[1756990089885,3.1504,4399.6,4399.5,6.4817]
[1756990090079,0.409,4399.7,4399.5,5.1625]
[1756990090283,0.409,4399.7,4399.6,3.0339]
[1756990090687,0.409,4399.7,4399.6,1.3192]
[1756990092988,0.409,4399.7,4399.6,1.5592]
[1756990093188,0.409,4399.7,4399.6,1.3192]
[1756990093381,0.409,4399.7,4399.6,1.5592]
[1756990093584,0.409,4399.7,4399.6,1.3192]
[1756990093780,1.6962,4399.7,4399.6,1.5582]
[1756990093985,1.6962,4399.7,4399.6,3.3994]
[1756990094180,1.6962,4399.7,4399.6,3.1604]
[1756990094396,1.2872,4399.6,4399.5,3.2078]
[1756990094693,3.068,4399.6,4399.5,3.4468]
[1756990097107,3.068,4399.6,4399.5,3.2078]
[1756990097407,2.1675,4399.6,4399.5,4.82795]
[1756990097610,3.068,4399.6,4399.5,4.82795]
[1756990098009,3.068,4399.6,4399.5,4.58895]
[1756990098306,3.068,4399.6,4399.5,4.82795]
[1756990099403,3.068,4399.6,4399.5,4.58895]
[1756990099597,3.068,4399.6,4399.5,4.82795]
[1756990099801,0.409,4399.7,4399.5,4.82795]
[1756990099998,0.409,4399.7,4399.6,3.1442]
[1756990101002,2.5765,4399.7,4399.6,3.1442]
[1756990101209,3.47701,4399.6,4399.5,2.74775]
[1756990101509,3.47701,4399.6,4399.5,3.89775]
[1756990101907,3.47701,4399.6,4399.5,2.74775]
[1756990102108,3.47701,4399.6,4399.5,2.98675]
[1756990102302,3.47701,4399.6,4399.5,4.82795]
[1756990103612,3.47701,4399.6,4399.5,4.58895]
[1756990103807,3.47701,4399.6,4399.5,4.82795]
[1756990104505,0.40901,4399.6,4399.5,6.13095]
[1756990104909,0.40901,4399.6,4399.5,6.43135]
[1756990110815,1.02246,4400.0,4399.6,1.303]
[1756990111004,0.40898,4400.0,4399.9,1.8412]
[1756990111203,0.40898,4400.0,4399.9,2.0802]
[1756990111514,0.40898,4400.0,4399.9,3.3832]
[1756990114311,0.40898,4400.0,4399.9,3.1442]
[1756990114812,0.40898,4400.0,4399.9,3.3832]
[1756990118114,0.40898,4400.0,4399.9,3.1442]
[1756990118316,0.40898,4400.0,4399.9,3.3832]
[1756990119114,0.40898,4400.0,4399.9,3.1442]
[1756990119314,1.28928,4400.0,4399.9,3.1442]
[1756990119512,3.11028,4400.0,4399.9,3.3832]
[1756990120313,4.01078,4400.0,4399.9,3.3832]
[1756990121008,4.01078,4400.0,4399.9,3.1442]
[1756990121217,4.01078,4400.0,4399.9,3.3832]
[1756990121717,0.40898,4400.0,4399.9,3.3832]
[1756990122217,2.69268,4400.0,4399.9,3.3832]
[1756990123507,3.733,4400.0,4399.7,2.85852771]
[1756990123816,3.61068,4399.9,4399.8,1.1475]
[1756990124415,3.61068,4399.9,4399.8,2.054]
[1756990124717,3.61068,4399.9,4399.8,3.3256]
[1756990125418,3.61068,4399.9,4399.8,5.36389592]
[1756990125815,0.5477,4401.0,4399.8,5.36389592]
[1756990126019,4.03856661,4405.1,4399.8,5.36389592]
[1756990126020,1.3765,4401.7,4401.2,1.815]
[1756990126316,1.78535,4401.3,4401.2,36.48589592]
[1756990126522,1.78535,4401.3,4401.2,37.8944]
[1756990127426,1.78535,4401.3,4401.2,39.93065768]
[1756990128222,1.78535,4401.3,4401.2,38.65905768]
[1756990128420,1.78535,4401.3,4401.2,36.6228]
[1756990128911,1.78535,4401.3,4401.2,37.8944]
[1756990129110,1.78535,4401.3,4401.2,37.6554]
[1756990129317,1.78535,4401.3,4401.2,37.8944]
[1756990129722,1.78535,4401.3,4401.2,38.12674415]
[1756990130126,3.61055,4401.3,4401.2,2.63401]
[1756990130416,0.40902,4399.5,4399.4,3.17572771]
[1756990130617,0.40902,4399.5,4399.4,4.56852771]
[1756990130823,0.40902,4399.5,4399.4,1.5106]
[1756990131011,0.40902,4399.5,4399.4,3.3256]
[1756990131213,0.40902,4399.5,4399.4,3.0866]
[1756990131414,0.40902,4399.5,4399.4,3.3256]
[1756990132425,0.40902,4399.5,4399.4,3.0866]
[1756990132723,0.40902,4399.5,4399.4,2.4191]
[1756990134813,0.40902,4399.5,4399.4,2.1801]
[1756990135013,0.40902,4399.5,4399.4,2.4191]
[1756990135915,0.40902,4399.5,4399.4,3.3256]
[1756990137123,1.02247,4399.9,4399.4,3.3256]
[1756990137419,2.58586,4400.2,4400.1,0.81252]
[1756990137619,1.31621,4399.6,4399.5,2.3639]
[1756990137819,2.23421,4399.6,4399.5,2.6029]
[1756990138726,1.31621,4399.6,4399.5,1.88481]
[1756990138925,1.31621,4399.6,4398.5,34.68441648]
[1756990138926,3.2017,4399.1,4398.5,34.68441648]
[1756990139126,0.40911,4398.6,4398.5,31.36766]
[1756990139420,1.78561,4398.6,4398.5,30.56662]
[1756990139627,1.78561,4398.6,4398.5,31.31765]
[1756990139825,0.40911,4398.6,4398.5,31.86655]
[1756990140122,1.78561,4398.6,4398.5,30.12375]
[1756990140323,1.78561,4398.6,4398.5,28.70646]
[1756990140518,1.78561,4398.6,4398.5,27.78044]
[1756990141025,1.78561,4398.6,4398.5,26.50884]
[1756990141227,1.78561,4398.6,4398.5,24.61868]
[1756990141523,3.61081,4398.6,4398.5,22.72184]
[1756990141721,3.61081,4398.6,4398.5,22.03067]
[1756990142120,3.61081,4398.6,4398.5,21.37354]
[1756990142318,3.61081,4398.6,4398.5,19.7339]
[1756990142523,3.61081,4398.6,4398.5,19.07478]
[1756990142721,3.61081,4398.6,4398.5,18.41568]
[1756990142928,3.61081,4398.6,4398.5,20.59578]
[1756990143125,3.61081,4398.6,4398.5,20.91037]
[1756990143427,0.40911,4398.6,4398.5,21.45927]
[1756990143828,1.31631,4398.6,4398.5,21.45927]
[1756990144428,1.31631,4398.6,4398.5,20.51343]
[1756990144630,3.61081,4398.6,4398.5,18.79721]
[1756990144828,3.61081,4398.6,4398.5,18.31502]
[1756990145017,0.40911,4398.6,4398.5,18.86392]
[1756990145218,3.61683,4399.4,4399.3,1.815]
[1756990145427,3.61683,4399.4,4399.3,3.3256]
[1756990149533,4.52403,4399.4,4399.3,3.3256]
[1756990149731,0.4091,4398.7,4398.6,1.2716]
[1756990149935,2.6928,4398.7,4398.6,3.0866]
[1756990150126,2.6928,4398.7,4398.6,3.3256]
[1756990150322,0.4091,4398.7,4398.6,3.3256]
[1756990150727,3.6108,4398.7,4398.6,1.815]
[1756990150926,3.6108,4398.7,4398.6,2.054]
[1756990151122,3.6108,4398.7,4398.6,3.3256]
[1756990151329,0.4091,4398.7,4398.6,3.3256]
[1756990153324,0.4091,4398.7,4398.6,6.94800789]
[1756990153532,0.4091,4398.7,4398.6,3.0866]
[1756990153731,2.6189,4398.7,4398.6,3.0866]
[1756990154028,3.5148,4398.7,4398.6,0.9085]
[1756990154234,3.5148,4398.7,4398.6,0.41911]
[1756990154436,1.3787,4398.6,4398.5,14.98942]
[1756990154639,3.1057,4398.6,4398.5,16.14272]
[1756990155136,3.1057,4398.6,4398.5,15.66414]
[1756990155338,3.1057,4398.6,4398.5,14.2627]
[1756990155534,3.1057,4398.6,4398.5,12.89873]
[1756990155836,3.1057,4398.6,4398.5,11.83101]
[1756990156037,3.1057,4398.6,4398.5,12.74531]
[1756990156339,3.1057,4398.6,4398.5,11.62085]
[1756990156632,3.1057,4398.6,4398.5,11.03216]
[1756990156838,3.1057,4398.6,4398.5,10.41904]
[1756990157239,3.1057,4398.6,4398.5,9.71844]
[1756990157439,3.1057,4398.6,4398.5,9.1608]
[1756990157639,3.51481,4398.6,4398.5,8.50556]
[1756990157841,3.51481,4398.6,4398.5,7.42142]
[1756990158237,3.51481,4398.6,4398.5,6.2211]
[1756990158433,0.8959,4398.2,4398.1,0.35125]
[1756990158640,3.51484,4398.2,4398.1,0.59025]
[1756990158840,3.51484,4398.2,4398.1,1.46865]
[1756990159042,3.51484,4398.2,4398.1,2.80495]
[1756990159343,2.61894,4398.2,4398.1,2.80495]
[1756990160042,2.61894,4398.2,4398.1,1.46865]
[1756990160243,2.61894,4398.2,4398.1,2.80495]
[1756990161744,0.40914,4398.2,4398.1,2.80495]
[1756990163340,1.78784,4398.2,4398.1,2.80495]
[1756990164946,2.61894,4398.2,4398.1,2.80495]
[1756990166743,4.06986,4398.0,4397.9,2.02105347]
[1756990166943,4.06986,4398.0,4397.9,3.59635347]
[1756990167345,4.06986,4398.0,4397.9,1.7927]
[1756990167649,0.40916,4398.0,4397.9,3.368]
[1756990168555,0.40916,4398.0,4397.9,3.59606316]
[1756990168761,1.78786,4398.0,4397.9,3.59606316]
[1756990170964,1.78786,4398.0,4397.9,3.35706316]
[1756990171162,1.78786,4398.0,4397.9,3.59606316]
[1756990171562,0.40916,4398.0,4397.9,3.59606316]
[1756990172265,0.40916,4398.0,4397.9,5.6316393]
[1756990176169,0.40916,4398.0,4397.9,5.3926393]
[1756990176467,1.78786,4398.0,4397.9,5.6316393]
[1756990178661,0.40916,4398.0,4397.9,5.6316393]
[1756990178866,0.40916,4398.0,4397.9,3.59606316]
[1756990179067,0.40913,4398.3,4398.2,1.7927]
[1756990179267,0.40913,4398.3,4398.2,3.0843]
[1756990181963,0.40913,4398.3,4398.2,5.94301527]
[1756990182162,0.40912,4398.4,4398.3,0.6731]
[1756990182462,0.40912,4398.4,4398.3,8.66221527]
[1756990183672,0.40908,4398.9,4398.8,1.1088]
[1756990183868,0.40908,4398.9,4398.8,7.70607383]
[1756990185470,3.72488,4398.9,4398.8,7.44207383]
[1756990185677,3.72488,4398.9,4398.8,4.2916]
[1756990186374,1.76078,4398.9,4398.8,4.2916]
[1756990186575,1.76078,4398.9,4398.8,4.5556]
[1756990187567,1.76078,4398.9,4398.8,5.44210711]
[1756990187771,0.40907,4399.0,4398.9,0.264]
[1756990187974,0.40907,4399.0,4398.9,0.8448]
[1756990188169,0.40906,4399.1,4398.9,0.8448]
[1756990188374,0.40906,4399.1,4399.0,0.239]
[1756990189278,0.40906,4399.1,4399.0,3.09141359]
[1756990189871,2.75256,4399.1,4399.0,2.85241359]
[1756990190067,1.0226,4399.4,4398.8,6.9467207]
[1756990190068,1.76078,4398.9,4398.8,6.9467207]
[1756990190266,1.3517,4399.7,4398.8,7.1857207]
[1756990190470,2.3731,4399.7,4399.6,2.73350711]
[1756990190679,2.3731,4399.7,4399.6,2.086]
[1756990190979,3.7248,4399.7,4399.6,0.88650711]
[1756990191171,3.7248,4399.7,4399.6,1.12550711]
[1756990192278,3.7248,4399.7,4399.6,2.04900711]
[1756990195683,3.7248,4399.7,4399.6,2.97250711]
[1756990196577,3.7248,4399.7,4399.6,0.239]
[1756990196773,3.7248,4399.7,4399.6,1.12550711]
[1756990196985,4.30202,4399.5,4399.4,3.2078]
[1756990197177,4.30202,4399.5,4399.4,3.4468]
[1756990197682,4.30202,4399.5,4399.4,4.3703]
[1756990198084,4.30202,4399.5,4399.4,5.2938]
[1756990198284,3.32972,4399.5,4399.4,5.2938]
[1756990198981,3.32972,4399.5,4399.4,3.4468]
[1756990198982,4.30202,4399.5,4399.4,3.4468]
[1756990199186,4.30202,4399.5,4399.4,5.25680711]
[1756990199375,4.30202,4399.5,4399.4,4.33330711]
[1756990199887,4.30202,4399.5,4399.4,5.25680711]
[1756990200074,4.30202,4399.5,4399.4,6.18030711]
[1756990200487,4.30202,4399.5,4399.4,5.2938]
[1756990200681,4.30202,4399.5,4399.4,6.18030711]
[1756990201183,3.32972,4399.5,4399.4,6.18030711]
[1756990201577,4.30202,4399.5,4399.4,6.18030711]
[1756990202099,4.30202,4399.5,4399.4,2.04900711]
[1756990202682,4.30202,4399.5,4399.4,2.97250711]
[1756990202884,2.33792,4399.5,4399.4,3.54970711]
[1756990203488,3.32972,4399.5,4399.4,3.54970711]
[1756990203689,3.32972,4399.5,4399.4,2.97250711]
[1756990204087,3.72484,4399.3,4399.2,2.96054245]
[1756990204287,3.72484,4399.3,4399.2,4.08604956]
[1756990204480,3.72484,4399.3,4399.2,5.00954956]
[1756990206181,3.72484,4399.3,4399.2,2.97250711]
[1756990206590,1.76074,4399.3,4399.2,4.43621422]
[1756990206991,0.40904,4399.3,4399.2,4.43621422]
[1756990207996,0.40903,4399.5,4399.4,2.4242]
[1756990208288,1.76069,4399.8,4399.7,1.847]
[1756990208490,1.02244,4400.1,4399.8,0.5772]
[1756990208491,0.40899,4399.9,4399.8,0.5772]
[1756990208791,0.40899,4399.9,4399.8,2.6622]
[1756990208992,1.76069,4399.9,4399.8,2.6622]
[1756990209388,0.40897,4400.1,4399.8,2.085]
[1756990209692,1.76067,4400.1,4400.0,6.51850711]
[1756990209887,0.40897,4400.1,4400.0,6.93510467]
[1756990210485,0.40896,4400.2,4400.0,6.93510467]
[1756990210693,0.40896,4400.2,4400.1,3.31070711]
[1756990211798,3.72476,4400.2,4400.1,2.97150711]
[1756990212295,3.72476,4400.2,4400.1,2.04800711]
[1756990213496,2.75246,4400.2,4400.1,2.91110711]
[1756990213693,1.76066,4400.2,4400.1,3.45050711]
[1756990214400,2.75936,4400.2,4400.1,2.91110711]
[1756990215101,3.67396,4400.2,4400.1,2.91110711]
[1756990215301,3.67396,4400.2,4400.1,2.04800711]
[1756990215499,3.72607,4400.1,4400.0,3.2078]
[1756990215700,3.72607,4400.1,4400.0,4.33230711]
[1756990217092,3.72607,4400.1,4400.0,4.09430711]
[1756990217294,3.72607,4400.1,4400.0,4.33230711]
[1756990218806,3.72607,4400.1,4400.0,5.18430711]
[1756990219301,3.72607,4400.1,4400.0,4.33230711]
[1756990219504,3.72607,4400.1,4400.0,3.2078]
[1756990219699,3.72607,4400.1,4399.8,32.24950711]
[1756990219700,0.40898,4399.9,4399.8,32.24950711]
[1756990219903,1.81278,4399.9,4399.8,32.48750711]
[1756990222104,0.40898,4399.9,4399.8,33.02000711]
[1756990225406,1.81278,4399.9,4399.8,33.02000711]
[1756990225600,0.40898,4399.9,4399.8,32.48750711]
[1756990225807,0.40898,4399.9,4399.8,33.02000711]
[1756990226608,1.4038,4400.3,4400.2,2.2365]
[1756990226911,1.81275,4400.3,4400.2,2.4745]
[1756990227111,0.40895,4400.3,4400.2,2.4745]
[1756990227311,1.81275,4400.3,4400.2,2.4745]
[1756990228506,1.81275,4400.3,4400.2,5.6823]
[1756990231017,1.4038,4400.7,4400.6,2.2365]
[1756990231213,1.8127,4400.8,4400.7,0.5325]
[1756990231410,1.8127,4400.8,4400.7,5.4443]
[1756990231918,2.8114,4400.8,4400.7,4.9118]
[1756990233619,0.5772,4401.5,4400.8,1.3879]
[1756990233812,1.02208,4401.6,4400.8,1.3879]
[1756990233813,0.40889,4400.9,4400.8,3.3126]
[1756990234007,0.40889,4400.9,4400.8,7.2895207]
[1756990234615,1.022,4401.9,4400.8,7.2895207]
[1756990234616,1.02201,4401.9,4400.8,7.2895207]
[1756990234815,2.3221,4401.9,4401.8,2.75131422]
[1756990235015,2.3221,4401.9,4401.8,3.49070711]
[1756990235224,2.3221,4401.9,4401.8,4.43710711]
[1756990235714,3.7259,4401.9,4401.8,1.12450711]
[1756990236116,3.7259,4401.9,4401.8,2.10280711]
[1756990238619,3.7259,4401.9,4401.8,0.238]
[1756990239925,3.7259,4401.9,4401.8,1.12450711]
[1756990241519,3.72594,4401.4,4401.3,5.24589153]
[1756990241829,3.72594,4401.4,4401.3,4.33230711]
[1756990242217,3.72594,4401.4,4401.3,7.74820711]
[1756990242617,2.81134,4401.4,4401.3,7.74820711]
[1756990242814,1.40754,4401.4,4401.3,7.74820711]
[1756990243419,3.80914,4401.4,4401.3,7.96525149]
[1756990244025,0.40884,4401.4,4401.3,7.96525149]
[1756990246433,0.40884,4401.4,4401.3,10.00334302]
[1756990250824,4.2297,4402.4,4401.5,0.5748]
[1756990251031,1.37039,4402.0,4401.9,3.4243]
[1756990251231,2.78879,4402.0,4401.9,3.6623]
[1756990252229,2.78879,4402.0,4401.9,4.76585149]
[1756990252538,3.77199,4402.0,4401.9,4.76585149]
[1756990253840,2.78879,4402.0,4401.9,4.76585149]
[1756990254234,2.35355,4402.4,4402.3,1.969]
[1756990254439,2.35355,4402.4,4402.3,2.207]
[1756990254643,2.35355,4402.4,4402.3,3.31055149]
[1756990254848,3.77195,4402.4,4402.3,3.31055149]
[1756990255949,0.40875,4402.4,4402.3,4.76585149]
[1756990256138,3.77195,4402.4,4402.3,4.99037126]
[1756990256448,2.35357,4402.2,4402.1,2.03809153]
[1756990256644,3.77197,4402.2,4402.1,0.238]
[1756990257344,7.77197,4402.2,4402.1,0.238]
[1756990257549,1.82722,4401.6,4401.5,33.38809153]
[1756990257751,1.82722,4401.6,4401.5,34.72964302]
[1756990258050,1.82722,4401.6,4401.5,33.62609153]
[1756990258243,1.82722,4401.6,4401.5,31.588]
[1756990258443,1.82722,4401.6,4401.5,33.62617152]
[1756990258646,1.82722,4401.6,4401.5,33.84914261]
[1756990258943,1.82722,4401.6,4401.5,31.81097109]
[1756990259145,1.82722,4401.6,4401.5,32.91452258]
[1756990260346,1.82722,4401.6,4401.5,31.588]
[1756990262755,3.77204,4401.4,4401.3,2.03817152]
[1756990262949,0.40889,4400.9,4400.4,3.2078]
[1756990263156,3.77211,4400.7,4400.6,0.23267116]
[1756990263358,3.77211,4400.7,4400.6,0.47067116]
[1756990264057,3.77211,4400.7,4400.6,0.238]
[1756990266252,3.3632,4400.2,4400.1,31.349]
[1756990266453,0.40904,4399.3,4399.2,3.2078]
[1756990266751,3.77224,4399.3,4399.2,0.238]
[1756990269354,3.7723,4398.6,4398.5,3.54555149]
[1756990269552,3.7723,4398.6,4398.5,1.2247]
[1756990269948,3.7723,4398.6,4398.5,3.6623]
[1756990270151,0.4091,4398.6,4398.5,4.2371]
[1756990270457,0.4091,4398.6,4398.5,5.10265149]
[1756990270661,1.3707,4398.6,4398.5,4.2361]
[1756990270852,0.4091,4398.6,4398.5,4.2361]
[1756990271048,0.4091,4398.6,4398.5,4.4631093]
[1756990271258,0.4091,4398.6,4398.5,8.4631093]
[1756990271753,3.2078,4399.3,4398.5,9.56666079]
[1756990271956,0.40901,4399.6,4399.5,2.5438]
[1756990272151,0.40901,4399.6,4399.5,5.33965149]